bitfinex/quotes_SOLUSD_20241118
["timestamp","ask_amount","ask_price","bid_price","bid_amount"]
[1731941321128,24.1224,242.58,242.51,35.95841969]
[1731941321354,24.1224,242.58,242.51,4.1234]
[1731941322140,24.1224,242.58,242.39,0.1]
[1731941322141,31.83501969,242.53,242.44,31.83501969]
[1731941322438,49.60831376,242.51,242.42,19.60831376]
[1731941322639,20.0,242.48,242.4,19.60831376]
[1731941323109,20.0,242.48,242.38,14.44]
[1731941323303,30.0,242.47,242.42,19.60831376]
[1731941323525,30.0,242.47,242.46,19.60831376]
[1731941323724,23.73071376,242.58,242.46,19.70198838]
[1731941323918,23.73071376,242.58,242.49,19.60831376]
[1731941324117,23.73071376,242.58,242.5,4.1237]
[1731941324433,30.0,242.51,242.5,10.3092]
[1731941324635,70.0,242.67,242.5,19.60831376]
[1731941324839,26.1161,242.68,242.58,19.60831376]
[1731941325135,19.60831376,242.65,242.56,19.60831376]
[1731941325436,8.6349,242.66,242.58,19.60831376]
[1731941325620,19.60831376,242.67,242.58,19.60831376]
[1731941326134,23.72921376,242.67,242.58,4.1223]
[1731941326515,23.72921376,242.67,242.56,29.91481376]
[1731941326516,19.60831376,242.65,242.56,29.91481376]
[1731941326939,19.60831376,242.63,242.56,10.3065]
[1731941327740,19.60831376,242.59,242.5,19.60831376]
[1731941327944,20.0,242.58,242.48,19.60831376]
[1731941328317,70.0,242.69,242.57,19.60831376]
[1731941328633,20.0,242.67,242.59,19.60831376]
[1731941329025,20.0,242.65,242.47,0.1]
[1731941329333,20.0,242.65,242.57,19.60831376]
[1731941329541,4.1213,242.64,242.57,19.60831376]
[1731941329837,20.0,242.63,242.55,19.60831376]
[1731941330343,23.72961376,242.64,242.55,19.60831376]
[1731941330520,23.72961376,242.64,242.57,19.60831376]
[1731941330521,4.1213,242.64,242.57,19.60831376]
[1731941330729,20.0,242.65,242.57,23.73081376]
[1731941330932,4.1212,242.65,242.59,19.60831376]
[1731941331435,24.1212,242.65,242.57,14.4288]
[1731941331736,21.9955,242.68,242.57,14.4288]
[1731941331737,21.9955,242.68,242.6,19.60831376]
[1731941332618,21.9955,242.68,242.58,19.60831376]
[1731941332619,45.72451376,242.68,242.58,19.60831376]
[1731941332936,45.72451376,242.68,242.59,4.1221]
[1731941333334,45.72451376,242.68,242.59,14.4275]
[1731941333335,19.60831376,242.66,242.59,14.4275]
[1731941334336,19.60831376,242.66,242.59,10.3054]
[1731941334627,19.60831376,242.7,242.62,19.60831376]
[1731941334821,19.60831376,242.7,242.59,10.3054]
[1731941334822,19.60831376,242.68,242.59,10.3054]
[1731941335334,19.60831376,242.68,242.6,19.60831376]
[1731941335848,20.0,242.67,242.59,14.4274]
[1731941336143,20.0,242.65,242.57,4.1224]
[1731941336517,20.0,242.65,242.57,14.4287]
[1731941337123,20.0,242.65,242.57,34.03701376]
[1731941337827,106.10676956,243.65,242.6,19.60831376]
[1731941337828,4.1207,242.68,242.6,19.60831376]
[1731941338220,24.1207,242.68,242.6,19.60831376]
[1731941339044,24.1207,242.68,242.58,19.60831376]
[1731941339248,19.60831376,242.71,242.6,19.60831376]
[1731941339546,28.46001376,242.73,242.64,19.60831376]
[1731941339757,20.7688,242.74,242.68,19.60831376]
[1731941339923,20.7688,242.74,242.59,0.09367462]
[1731941339924,8.1518,242.79,242.72,19.60831376]
[1731941340117,29.90181376,242.88,242.78,19.60831376]
[1731941340118,19.60831376,242.86,242.78,19.60831376]
[1731941340321,4.1172,242.88,242.65,24.12153862]
[1731941340322,30.0,242.79,242.74,19.60831376]
[1731941340541,30.0,242.79,242.76,19.60831376]
[1731941341050,30.0,242.79,242.78,19.60831376]
[1731941341223,30.0,242.79,242.78,19.70198838]
[1731941341631,8.1518,242.89,242.79,0.09367462]
[1731941341832,8.1518,242.89,242.8,19.60831376]
[1731941342348,19.60831376,242.81,242.61,20.1]
[1731941342550,19.60831376,242.76,242.67,19.60831376]
[1731941342848,30.0,242.8,242.71,19.60831376]
[1731941343222,30.0,242.8,242.72,0.09367462]
[1731941343420,30.0,242.8,242.75,19.60831376]
[1731941343856,30.0,242.8,242.73,19.60831376]
[1731941344053,30.0,242.8,242.66,23.72921376]
[1731941344054,19.60831376,242.75,242.66,23.72921376]
[1731941344222,19.60831376,242.73,242.64,23.72951376]
[1731941344418,19.60831376,242.71,242.62,23.72981376]
[1731941344621,19.60831376,242.69,242.62,4.1215]
[1731941344847,19.60831376,242.67,242.6,4.1219]
[1731941345020,19.60831376,242.67,242.58,23.73061376]
[1731941345636,19.60831376,242.65,242.56,23.73081376]
[1731941345821,19.60831376,242.65,242.56,34.03751376]
[1731941346448,20.0,242.66,242.59,19.60831376]
[1731941346623,24.1208,242.67,242.59,19.60831376]
[1731941346825,20.0,242.67,242.61,19.60831376]
[1731941347149,4.12,242.72,242.65,19.60831376]
[1731941347325,23.72831376,242.72,242.63,19.60831376]
[1731941347522,19.60831376,242.67,242.59,19.60831376]
[1731941348024,19.60831376,242.71,242.63,19.60831376]
[1731941348225,0.1,242.78,242.54,0.09367462]
[1731941348226,12.3609,242.74,242.65,19.60831376]
[1731941348454,12.3609,242.74,242.54,0.09367462]
[1731941348455,8.2412,242.74,242.67,19.60831376]
[1731941349047,8.2412,242.74,242.69,19.60831376]
[1731941349251,23.72711376,242.79,242.71,19.60831376]
[1731941349949,20.0,242.78,242.69,19.60831376]
[1731941350252,20.0,242.74,242.69,19.60831376]
[1731941350821,20.0,242.78,242.69,19.60831376]
[1731941351254,4.1191,242.77,242.69,19.60831376]
[1731941351432,20.0,242.74,242.65,19.60831376]
[1731941351847,20.0,242.74,242.65,23.72931376]
[1731941352147,20.0,242.74,242.57,0.12549]
[1731941352148,19.60831376,242.72,242.63,23.72961376]
[1731941352362,39.60831376,242.74,242.65,19.60831376]
[1731941352739,30.0,242.71,242.69,19.60831376]
[1731941353545,22.0729,242.82,242.7,23.99604862]
[1731941353749,4.118,242.84,242.78,19.60831376]
[1731941353957,30.0,242.79,242.78,19.60831376]
[1731941354133,4.1176,242.86,242.78,19.60831376]
[1731941354341,4.1176,242.86,242.8,19.60831376]
[1731941354552,8.4142,242.87,242.8,19.60831376]
[1731941354739,10.2912,242.93,242.84,19.60831376]
[1731941354740,4.1164,242.93,242.84,19.60831376]
[1731941354960,12.5303,242.95,242.75,0.34465462]
[1731941355129,8.4142,242.95,242.9,19.60831376]
[1731941355335,30.0,242.91,242.9,19.60831376]
[1731941355544,20.1602,242.96,242.9,19.60831376]
[1731941356234,4.1159,242.96,242.9,19.60831376]
[1731941357029,4.1159,242.96,242.88,19.60831376]
[1731941357653,20.0,242.95,242.88,19.60831376]
[1731941357858,24.1161,242.95,242.88,19.60831376]
[1731941358200,24.1161,242.95,242.7,3.49439521]
[1731941358201,20.0,242.89,242.78,19.60831376]
[1731941358330,19.60831376,242.87,242.78,19.60831376]
[1731941358536,20.0,242.88,242.8,19.60831376]
[1731941358763,20.0,242.88,242.82,19.60831376]
[1731941359140,19.60831376,242.87,242.78,19.60831376]
[1731941359348,50.0,242.86,242.78,19.60831376]
[1731941359554,50.0,242.86,242.8,19.60831376]
[1731941360237,50.0,242.86,242.8,23.72671376]
[1731941360540,4.117,242.9,242.82,19.60831376]
[1731941360855,24.117,242.9,242.82,19.60831376]
[1731941361056,23.72471376,242.93,242.84,19.60831376]
[1731941361362,23.72441376,242.95,242.86,19.60831376]
[1731941361661,23.72441376,242.95,242.85,0.09367462]
[1731941361662,19.60831376,242.93,242.85,0.09367462]
[1731941361956,19.60831376,242.93,242.86,4.1175]
[1731941362158,23.72441376,242.95,242.86,23.72581376]
[1731941362459,19.60831376,242.99,242.88,19.60831376]
[1731941362766,4.1147,243.03,242.96,19.60831376]
[1731941362939,19.60831376,243.07,242.98,19.60831376]
[1731941363364,23.72241376,243.07,242.98,19.60831376]
[1731941363672,19.60831376,243.07,242.98,19.60831376]
[1731941363966,4.1142,243.06,242.98,19.60831376]
[1731941364155,19.60831376,243.05,242.97,4.1155]
[1731941364358,20.0,243.09,242.98,19.60831376]
[1731941364553,20.0,243.05,242.96,19.60831376]
[1731941364861,20.0,243.03,242.94,19.60831376]
[1731941365358,4.1139,243.08,242.98,19.60831376]
[1731941365558,23.72301376,243.03,242.94,19.60831376]
[1731941365867,19.60831376,243.01,242.91,4.1166]
[1731941366070,20.0,243.02,242.89,19.60831376]
[1731941366071,50.0,242.98,242.89,19.60831376]
[1731941366249,50.0,242.98,242.91,19.60831376]
[1731941366440,50.0,242.98,242.93,19.60831376]
[1731941366765,30.0,242.98,242.95,19.60831376]
[1731941366946,34.1155,242.98,242.93,19.60831376]
[1731941367156,24.1149,243.02,242.95,19.60831376]
[1731941367459,4.1137,243.09,242.99,19.60831376]
[1731941367763,30.0,243.0,242.95,19.60831376]
[1731941367960,30.0,243.0,242.93,19.60831376]
[1731941368150,20.0,243.01,242.93,19.60831376]
[1731941368349,19.60831376,243.02,242.89,19.60831376]
[1731941368350,20.0,242.97,242.89,19.60831376]
[1731941368536,20.0,242.95,242.86,19.60831376]
[1731941368850,19.60831376,243.08,242.95,0.09367462]
[1731941369158,23.72181376,243.1,243.0,19.60831376]
[1731941370157,4.1135,243.1,243.02,19.60831376]
[1731941370370,8.592,243.14,243.06,19.60831376]
[1731941370668,19.60831376,243.16,243.06,19.60831376]
[1731941370869,23.72091376,243.16,243.08,19.60831376]
[1731941371050,19.60831376,243.14,243.06,19.60831376]
[1731941371251,19.60831376,243.14,243.04,19.60831376]
[1731941371979,19.60831376,243.1,243.0,19.60831376]
[1731941372283,19.60831376,243.08,242.98,19.60831376]
[1731941372568,19.60831376,243.08,242.98,23.72381376]
[1731941372780,8.3946,243.03,242.91,4.1167]
[1731941372980,20.0,242.97,242.88,19.60831376]
[1731941373150,70.0,243.02,242.9,19.60831376]
[1731941373151,19.60831376,242.99,242.9,19.60831376]
[1731941373350,19.60831376,243.01,242.9,19.60831376]
[1731941373562,8.3946,243.03,242.94,19.60831376]
[1731941373760,49.60831376,243.07,242.96,19.60831376]
[1731941373978,20.0,243.06,243.0,19.60831376]
[1731941374187,30.0,243.07,242.98,19.60831376]
[1731941374350,34.114,243.07,243.0,19.60831376]
[1731941375079,30.0,243.07,243.0,19.60831376]
[1731941375687,24.1142,243.06,242.98,19.60831376]
[1731941376186,20.0,243.06,243.0,23.72351376]
[1731941376767,30.0,243.07,243.0,23.72351376]
[1731941376967,34.1141,243.07,243.0,4.1152]
[1731941377165,30.0,243.07,243.01,19.60831376]
[1731941377371,30.0,243.07,243.03,19.60831376]
[1731941377877,30.0,243.07,242.93,0.2]
[1731941377878,20.0,243.06,242.97,19.60831376]
[1731941378080,19.60831376,243.05,242.95,19.60831376]
[1731941378383,20.0,243.02,242.93,23.72461376]
[1731941379685,24.1149,243.02,242.93,23.72461376]
[1731941380580,4.1149,243.02,242.93,23.72461376]
[1731941380783,19.60831376,242.99,242.89,19.60831376]
[1731941380985,19.60831376,242.97,242.87,19.60831376]
[1731941381662,20.0,242.95,242.87,19.60831376]
[1731941381976,39.60831376,242.95,242.85,23.72591376]
[1731941382157,30.0,242.96,242.89,19.60831376]
[1731941382678,30.0,242.94,242.87,19.60831376]
[1731941383381,30.0,242.94,242.87,23.72551376]
[1731941383562,34.1162,242.94,242.87,19.60831376]
[1731941384280,34.1162,242.94,242.85,23.72591376]
[1731941384593,19.60831376,242.89,242.79,19.60831376]
[1731941384758,19.60831376,242.85,242.75,23.72761376]
[1731941384961,30.0,242.84,242.75,23.72761376]
[1731941385270,27.85171376,242.81,242.71,19.60831376]
[1731941385469,4.1186,242.8,242.71,19.60831376]
[1731941385967,50.0,242.78,242.69,19.60831376]
[1731941386475,20.0,242.76,242.67,19.60831376]
[1731941386676,20.0,242.76,242.62,4.1216]
[1731941386677,30.0,242.78,242.71,19.60831376]
[1731941386978,0.1,242.85,242.64,19.60831376]
[1731941386979,8.8079,242.87,242.77,19.60831376]
[1731941387187,20.0,242.86,242.8,19.60831376]
[1731941387486,43.72591376,242.86,242.76,19.60831376]
[1731941387662,20.0,242.83,242.74,19.60831376]
[1731941387989,20.0,242.83,242.76,19.60831376]
[1731941388164,78.8079,242.87,242.78,19.60831376]
[1731941388370,89.60831376,242.84,242.76,19.60831376]
[1731941388585,19.60831376,242.78,242.7,19.60831376]
[1731941388893,19.60831376,242.76,242.66,23.72921376]
[1731941389378,4.1192,242.76,242.68,23.72881376]
[1731941389773,30.0,242.75,242.68,23.72881376]
[1731941389980,30.0,242.75,242.72,19.60831376]
[1731941390179,23.72731376,242.78,242.68,34.03041376]
[1731941390470,19.60831376,242.76,242.68,34.03041376]
[1731941390680,19.60831376,242.76,242.68,14.4222]
[1731941390882,19.60831376,242.76,242.68,10.3016]
[1731941391392,24.1194,242.75,242.68,10.3016]
[1731941391959,19.60831376,242.74,242.64,19.60831376]
[1731941392184,30.0,242.73,242.64,19.60831376]
[1731941392688,20.0,242.72,242.64,19.60831376]
[1731941393080,48.33871376,242.72,242.63,10.3036]
[1731941393285,20.0,242.7,242.63,10.3036]
[1731941393481,20.0,242.7,242.63,14.4251]
[1731941393667,20.0,242.7,242.63,10.3036]
[1731941393867,43.72871376,242.7,242.63,10.3036]
[1731941394077,43.72871376,242.7,242.61,4.1217]
[1731941394276,20.0,242.68,242.61,4.1217]
[1731941394676,20.0,242.69,242.61,4.1217]
[1731941394996,8.7304,242.72,242.66,19.60831376]
[1731941395187,19.60831376,242.78,242.7,19.60831376]
[1731941395392,21.5243,242.81,242.74,19.60831376]
[1731941396193,21.5243,242.81,242.76,19.60831376]
[1731941396367,8.02,242.85,242.78,19.60831376]
[1731941396562,8.02,242.85,242.73,14.4193]
[1731941396787,19.60831376,242.94,242.84,19.60831376]
[1731941396994,19.60831376,242.9,242.8,19.60831376]
[1731941397379,19.60831376,242.92,242.82,19.60831376]
[1731941397578,30.0,242.84,242.83,4.1181]
[1731941397771,19.60831376,242.92,242.83,4.1181]
[1731941397973,23.72491376,242.92,242.83,4.1181]
[1731941398389,31.76433609,242.91,242.83,4.1181]
[1731941398978,31.76433609,242.89,242.79,31.76433609]
[1731941399301,20.0,242.88,242.81,31.76433609]
[1731941399592,35.88113609,242.91,242.81,31.76433609]
[1731941399593,20.0,242.9,242.81,31.76433609]
[1731941399997,20.0,242.9,242.71,4.1201]
[1731941399998,31.76433609,242.95,242.85,31.76433609]
[1731941400175,53.23743609,242.97,242.87,31.76433609]
[1731941400370,31.76433609,242.95,242.85,31.76433609]
[1731941400575,31.76433609,242.93,242.83,31.76433609]
[1731941400995,31.76433609,242.87,242.78,31.76433609]
[1731941401292,4.1165,242.92,242.7,31.76433609]
[1731941401293,20.0,242.79,242.7,31.76433609]
[1731941402175,20.0,242.79,242.68,31.76433609]
[1731941402371,24.1188,242.79,242.7,31.76433609]
[1731941402600,20.0,242.79,242.72,31.76433609]
[1731941402904,20.0,242.83,242.77,31.76433609]
[1731941403190,31.76433609,242.8,242.71,31.76433609]
[1731941403375,20.0,242.79,242.71,31.76433609]
[1731941403971,31.76433609,242.74,242.64,31.76433609]
[1731941404166,31.76433609,242.74,242.6,4.122]
[1731941404167,20.0,242.69,242.6,31.76433609]
[1731941404391,20.0,242.69,242.62,31.76433609]
[1731941404777,20.0,242.71,242.62,31.76433609]
[1731941405182,35.88433609,242.72,242.5,8.0339]
[1731941405183,20.0,242.66,242.58,31.76433609]
[1731941406099,20.0,242.66,242.54,10.3071]
[1731941406100,35.88543609,242.65,242.56,31.76433609]
[1731941406275,30.0,242.64,242.56,31.76433609]
[1731941406594,20.0,242.63,242.58,31.76433609]
[1731941406897,121.76433609,242.63,242.53,31.76433609]
[1731941407305,20.0,242.6,242.53,31.76433609]
[1731941407607,90.0,242.6,242.51,31.76433609]
[1731941407907,90.0,242.57,242.49,31.76433609]
[1731941408214,30.0,242.56,242.49,31.76433609]
[1731941408513,30.0,242.56,242.55,31.76433609]
[1731941408804,4.1216,242.63,242.55,31.76433609]
[1731941408978,20.0,242.58,242.51,31.76433609]
[1731941409181,20.0,242.58,242.49,42.07403609]
[1731941409587,20.0,242.58,242.51,31.76433609]
[1731941409801,101.76433609,242.55,242.45,31.76433609]
[1731941410005,20.0,242.54,242.45,31.76433609]
[1731941410208,4.1232,242.53,242.45,31.76433609]
[1731941410903,50.0,242.54,242.47,31.76433609]
[1731941411117,30.0,242.52,242.49,31.76433609]
[1731941411293,30.0,242.52,242.51,31.76433609]
[1731941412211,4.1224,242.58,242.51,31.76433609]
[1731941412908,4.1224,242.58,242.49,31.76433609]
[1731941413095,101.76433609,242.63,242.55,31.76433609]
[1731941413279,101.76433609,242.63,242.53,31.76433609]
[1731941413480,31.76433609,242.61,242.53,31.76433609]
[1731941413793,31.76433609,242.65,242.57,31.76433609]
[1731941413990,31.76433609,242.65,242.49,24.12153862]
[1731941413991,28.9959,242.68,242.63,31.76433609]
[1731941414189,20.877,242.75,242.66,31.76433609]
[1731941414392,70.0,242.73,242.64,31.76433609]
[1731941414613,20.877,242.75,242.68,31.76433609]
[1731941415580,20.877,242.75,242.66,31.76433609]
[1731941415889,8.1402,242.76,242.72,31.76433609]
[1731941416403,4.1184,242.81,242.74,31.76433609]
[1731941416787,89.9784,242.82,242.72,4.1199]
[1731941416788,19.9784,242.82,242.76,31.76433609]
[1731941417285,19.9784,242.82,242.78,31.76433609]
[1731941417514,30.0,242.79,242.78,31.76433609]
[1731941418417,30.0,242.79,242.78,35.88323609]
[1731941418588,52.85063609,242.89,242.78,35.88323609]
[1731941418589,4.1175,242.87,242.78,35.88323609]
[1731941418788,4.1175,242.87,242.8,31.76433609]
[1731941419191,8.4927,242.9,242.85,31.76433609]
[1731941419398,30.0,242.86,242.79,24.12153862]
[1731941419602,52.65383609,242.97,242.81,24.12153862]
[1731941419603,25.0053,242.97,242.81,24.12153862]
[1731941420198,70.0,242.94,242.78,4.1189]
[1731941420397,35.88073609,242.93,242.84,31.76433609]
[1731941421205,101.76433609,242.85,242.74,31.76433609]
[1731941421406,101.76433609,242.85,242.72,16.477851]
[1731941421407,101.76433609,242.81,242.72,48.24218709]
[1731941421607,70.0,242.78,242.7,31.76433609]
[1731941421810,20.0,242.74,242.66,31.76433609]
[1731941422016,20.0,242.74,242.64,31.76433609]
[1731941422192,31.76433609,242.73,242.64,31.76433609]
[1731941422398,24.1199,242.72,242.64,31.76433609]
[1731941422791,70.0,242.71,242.64,31.76433609]
[1731941422995,20.0,242.7,242.62,31.76433609]
[1731941423302,30.0,242.69,242.62,31.76433609]
[1731941423507,20.0,242.68,242.62,31.76433609]
[1731941424318,34.1208,242.67,242.6,31.76433609]
[1731941424704,20.0,242.66,242.6,31.76433609]
[1731941424923,20.0,242.66,242.62,31.76433609]
[1731941425602,30.0,242.65,242.62,31.76433609]
[1731941425921,4.1195,242.75,242.64,63.52867218]
[1731941426124,4.1195,242.75,242.7,31.76433609]
[1731941426321,4.1187,242.79,242.7,31.76433609]
[1731941426498,30.0,242.71,242.7,31.76433609]
[1731941426928,4.1187,242.79,242.7,31.76433609]
[1731941427112,31.76433609,242.76,242.66,31.76433609]
[1731941427318,31.76433609,242.76,242.68,31.76433609]
[1731941427508,70.0,242.77,242.68,31.76433609]
[1731941427711,28.8731,242.8,242.72,31.76433609]
[1731941427901,32.9918,242.8,242.72,31.76433609]
[1731941428241,28.8731,242.8,242.74,31.76433609]
[1731941428408,4.1179,242.84,242.78,31.76433609]
[1731941428595,101.76433609,242.86,242.78,31.76433609]
[1731941428796,30.0,242.79,242.78,31.76433609]
[1731941429321,30.0,242.79,242.76,31.76433609]
[1731941429525,30.0,242.79,242.78,31.76433609]
[1731941430031,74.1176,242.86,242.78,31.76433609]
[1731941430239,31.76433609,242.84,242.71,10.3003]
[1731941430530,31.76433609,242.84,242.69,31.76433609]
[1731941430531,70.0,242.78,242.69,31.76433609]
[1731941430721,20.0,242.73,242.65,31.76433609]
[1731941431031,20.0,242.69,242.59,31.76433609]
[1731941431511,20.0,242.69,242.57,4.1225]
[1731941431512,20.0,242.71,242.63,31.76433609]
[1731941431913,4.1203,242.7,242.63,31.76433609]
[1731941432329,20.0,242.69,242.61,31.76433609]
[1731941432725,0.1,242.76,242.52,31.76433609]
[1731941432726,70.0,242.88,242.68,31.76433609]
[1731941432928,70.0,242.88,242.64,31.76433609]
[1731941432929,70.0,242.84,242.64,31.76433609]
[1731941433267,70.0,242.84,242.76,31.76433609]
[1731941433435,30.0,242.77,242.76,31.76433609]
[1731941434821,74.1176,242.86,242.77,4.1191]
[1731941435130,30.0,242.8,242.77,4.1191]
[1731941435336,30.0,242.8,242.78,23.87055862]
[1731941435528,30.0,242.8,242.79,0.09367462]
[1731941435833,8.4213,242.93,242.8,23.87055862]
[1731941436033,8.4213,242.93,242.9,31.76433609]
[1731941436226,30.0,242.91,242.88,4.1171]
[1731941436416,30.0,242.91,242.9,31.76433609]
[1731941437435,4.1155,242.99,242.9,31.76433609]
[1731941437643,4.1155,242.99,242.88,4.1171]
[1731941437644,4.1155,242.99,242.93,31.76433609]
[1731941437834,30.0,242.94,242.93,31.76433609]
[1731941438548,30.0,242.94,242.8,23.97055862]
[1731941438549,20.0,242.93,242.89,31.76433609]
[1731941438841,90.0,242.93,242.87,31.76433609]
[1731941439337,20.0,242.89,242.83,31.76433609]
[1731941440521,20.0,242.93,242.87,31.76433609]
[1731941440719,20.0,242.89,242.83,31.76433609]
[1731941441116,20.0,242.89,242.85,31.76433609]
[1731941441325,20.0,242.88,242.81,31.76433609]
[1731941441544,20.0,242.88,242.83,31.76433609]
[1731941442037,20.0,242.85,242.81,31.76433609]
[1731941442236,70.0,242.82,242.77,31.76433609]
[1731941442539,4.1186,242.8,242.77,31.76433609]
[1731941442729,4.1186,242.8,242.75,31.76433609]
[1731941442914,4.1186,242.8,242.77,31.76433609]
[1731941443425,20.0,242.82,242.79,31.76433609]
[1731941443625,20.0,242.82,242.81,31.76433609]
[1731941444920,20.0,242.81,242.77,31.76433609]
[1731941445845,20.12549,242.84,242.79,31.76433609]
[1731941446022,21.0371,242.87,242.76,31.76433609]
[1731941446023,30.0,242.8,242.76,31.76433609]
[1731941446221,30.0,242.8,242.79,31.76433609]
[1731941447137,4.118,242.84,242.79,31.76433609]
[1731941447337,25.1546,242.87,242.83,31.76433609]
[1731941447553,30.0,242.84,242.77,23.87055862]
[1731941447722,30.0,242.84,242.79,0.09367462]
[1731941448025,30.0,242.84,242.81,23.87055862]
[1731941448229,4.1162,242.94,242.82,4.1182]
[1731941448430,4.1162,242.94,242.91,31.76433609]
[1731941448747,30.0,242.92,242.91,31.76433609]
[1731941448929,30.0,242.92,242.89,31.76433609]
[1731941449347,34.1166,242.92,242.89,31.76433609]
[1731941449729,70.0,242.88,242.83,31.76433609]
[1731941449930,20.0,242.91,242.87,31.76433609]
[1731941450241,20.0,242.91,242.77,4.119]
[1731941450242,20.0,242.91,242.9,31.76433609]
[1731941450442,50.0,242.91,242.9,31.76433609]
[1731941452333,30.0,242.91,242.9,31.76433609]
[1731941452643,30.0,242.91,242.9,60.00277471]
[1731941452825,21.2081,243.05,242.92,0.12549]
[1731941453025,4.1143,243.06,243.03,31.76433609]
[1731941453761,4.1143,243.06,242.92,0.25098]
[1731941453762,12.607,243.09,243.05,31.76433609]
[1731941454050,21.2081,243.12,243.07,31.76433609]
[1731941454248,21.2081,243.12,243.0,31.76433609]
[1731941454249,21.2081,243.12,243.09,31.76433609]
[1731941454451,4.1129,243.14,243.09,31.76433609]
[1731941454958,4.1114,243.23,243.12,63.52867218]
[1731941455163,19.761,243.26,243.21,31.76433609]
[1731941455450,4.1107,243.27,243.21,31.76433609]
[1731941455776,70.0,243.25,243.21,31.76433609]
[1731941455954,70.0,243.25,243.15,31.76433609]
[1731941456133,70.0,243.19,243.13,31.76433609]
[1731941456331,70.0,243.19,243.11,31.76433609]
[1731941456531,0.09367462,243.15,243.07,31.76433609]
[1731941456957,78.6376,243.16,243.09,31.76433609]
[1731941457257,20.0,243.15,243.09,31.76433609]
[1731941457453,4.1128,243.14,243.09,31.76433609]
[1731941457936,4.1128,243.14,243.03,4.1145]
[1731941457937,20.0,243.15,243.11,31.76433609]
[1731941458264,20.6613,243.19,243.13,31.76433609]
[1731941458457,24.7734,243.19,243.15,31.76433609]
[1731941458763,24.7734,243.19,243.13,31.76433609]
[1731941458934,4.1113,243.23,243.17,31.76433609]
[1731941459256,4.1113,243.23,243.04,0.09367462]
[1731941459257,8.3575,243.24,243.19,31.76433609]
[1731941459552,12.4687,243.24,243.17,31.76433609]
[1731941460130,70.0,243.22,243.15,31.76433609]
[1731941460456,70.0,243.22,243.17,31.76433609]
[1731941460457,20.0,243.21,243.17,31.76433609]
[1731941460636,20.0,243.23,243.17,31.76433609]
[1731941461052,12.4687,243.24,243.13,31.76433609]
[1731941461053,70.0,243.19,243.13,31.76433609]
[1731941461244,24.1121,243.18,243.13,31.76433609]
[1731941461646,24.1121,243.18,243.11,31.76433609]
[1731941462734,24.1126,243.15,243.09,31.76433609]
[1731941463155,20.0,243.12,243.05,31.76433609]
[1731941464239,24.1126,243.15,243.09,31.76433609]
[1731941464436,24.1126,243.15,243.11,31.76433609]
[1731941464759,20.0,243.11,243.03,31.76433609]
[1731941465054,20.0,243.08,243.03,31.76433609]
[1731941465258,20.0,243.08,243.05,31.76433609]
[1731941465459,20.0,243.08,243.0,31.76433609]
[1731941465460,20.0,243.08,243.07,31.76433609]
[1731941465855,20.0,243.11,243.05,31.76433609]
[1731941466040,20.0,243.11,242.96,4.1159]
[1731941466041,20.0,243.08,243.03,31.76433609]
[1731941466238,20.0,243.05,243.01,31.76433609]
[1731941466643,20.0,243.05,242.97,31.76433609]
[1731941466960,20.0,243.02,242.97,31.76433609]
[1731941467147,20.0,243.02,242.95,31.76433609]
[1731941467347,20.0,243.02,242.8,8.0867]
[1731941467348,20.0,242.97,242.93,31.76433609]
[1731941467648,20.0,242.97,242.89,31.76433609]
[1731941467649,20.0,242.94,242.89,31.76433609]
[1731941468051,20.0,242.94,242.91,31.76433609]
[1731941468261,20.0,242.98,242.91,31.76433609]
[1731941468654,4.1157,242.97,242.91,31.76433609]
[1731941469160,20.0,242.94,242.89,31.76433609]
[1731941469459,20.0,242.94,242.87,31.76433609]
[1731941469667,70.0,242.91,242.87,31.76433609]
[1731941469840,20.0,242.9,242.85,31.76433609]
[1731941470341,70.0,242.83,242.77,31.76433609]
[1731941470557,20.0,242.82,242.77,31.76433609]
[1731941470792,24.1183,242.82,242.77,31.76433609]
[1731941471278,52.48153609,242.88,242.81,31.76433609]